fUST/lending_fUST_20250210
["ID","MTS","AMOUNT","RATE_DAILY","PERIOD"]
[352597629,1739188240279,-182.26280745,0.00011095,2]
[352597630,1739188240297,-816.13,0.00011095,2]
[352597631,1739188240308,-500.0,0.00011095,2]
[352597632,1739188240318,-500.0,0.00011095,2]
[352597633,1739188240327,-500.0,0.00011095,2]
[352597634,1739188240337,-500.0,0.00011095,2]
[352597635,1739188240346,-500.0,0.00011095,2]
[352597636,1739188240355,-1626.04,0.00011095,2]
[352597637,1739188240364,-1151.91,0.00011095,2]
[352597638,1739188240373,-889.26,0.00011095,2]
[352597639,1739188240383,-500.0,0.00011095,2]
[352597640,1739188240392,-513.58999976,0.00011095,2]
[352597641,1739188240401,-661.01,0.00011095,2]
[352597642,1739188240410,-500.0,0.00011095,2]
[352597643,1739188240420,-500.0,0.00011095,2]
[352597644,1739188240429,-500.0,0.00011095,2]
[352597645,1739188240438,-500.0,0.00011095,2]
[352597646,1739188240447,-500.0,0.00011095,2]
[352597647,1739188240457,-500.0,0.00011095,2]
[352597648,1739188240466,-500.0,0.00011095,2]
[352597649,1739188240476,-298.84362855,0.00011095,2]
[352597650,1739188240485,-500.0,0.00011095,2]
[352597651,1739188240495,-500.0,0.00011095,2]
[352597652,1739188240505,-38039.3414354,0.00011132,2]
[352597653,1739188240516,-500.0,0.00011231,2]
[352597654,1739188240526,-566.57794621,0.00011231,2]
[352597655,1739188240536,-500.0,0.00011231,2]
[352597656,1739188240545,-500.0,0.00011231,2]
[352597657,1739188240554,-500.0,0.00011232,2]
[352597658,1739188240564,-500.0,0.00011232,2]
[352597659,1739188240574,-500.0,0.00011232,2]
[352597660,1739188240583,-500.0,0.00011232,2]
[352597661,1739188240592,-500.0,0.00011232,2]
[352597662,1739188240602,-500.0,0.00011232,2]
[352597663,1739188240612,-500.0,0.00011232,2]
[352597664,1739188240622,-294.42050055,0.00011232,2]
[352597665,1739188240632,-500.0,0.00011232,2]
[352597666,1739188240642,-502.71504357,0.00011232,2]
[352597667,1739188240652,-500.0,0.00011232,2]
[352597668,1739188240663,-264.3,0.00011232,2]
[352597669,1739188240673,-500.0,0.00011232,2]
[352597670,1739188240685,-500.0,0.00011232,2]
[352597671,1739188240694,-500.0,0.00011232,2]
[352597672,1739188240704,-766.47,0.00011232,2]
[352597673,1739188240713,-500.0,0.00011232,2]
[352597674,1739188240723,-500.0,0.00011232,2]
[352597675,1739188240734,-500.0,0.00011232,2]
[352597676,1739188240744,-570.59,0.00011232,2]
[352597677,1739188240756,-500.0,0.00011232,2]
[352597678,1739188240768,-500.0,0.00011232,2]
[352597679,1739188240782,-500.0,0.00011232,2]
[352597680,1739188240791,-500.0,0.00011232,2]
[352597681,1739188240800,-500.0,0.00011232,2]
[352597682,1739188240809,-500.0,0.00011232,2]
[352597683,1739188240819,-599.48,0.00011232,2]
[352597684,1739188240829,-500.0,0.00011232,2]
[352597685,1739188240838,-500.0,0.00011232,2]
[352597686,1739188240848,-458.39,0.00011232,2]
[352597687,1739188240858,-500.0,0.00011232,2]
[352597688,1739188240869,-500.0,0.00011232,2]
[352597689,1739188240878,-500.0,0.00011232,2]
[352597690,1739188240888,-500.0,0.00011232,2]
[352597691,1739188240897,-500.0,0.00011232,2]
[352597692,1739188240906,-500.0,0.00011232,2]
[352597693,1739188240916,-565.10430354,0.00011232,2]
[352597694,1739188240925,-500.0,0.00011232,2]
[352597695,1739188240935,-500.0,0.00011232,2]
[352597696,1739188240945,-576.64,0.00011232,2]
[352597697,1739188240954,-500.0,0.00011232,2]
[352597698,1739188240964,-603.82,0.00011232,2]
[352597699,1739188240973,-500.0,0.00011232,2]
[352597700,1739188240983,-500.0,0.00011232,2]
[352597701,1739188240993,-500.0,0.00011232,2]
[352597702,1739188241003,-500.0,0.00011232,2]
[352597703,1739188241012,-500.0,0.00011232,2]
[352597704,1739188241021,-500.0,0.00011232,2]
[352597705,1739188241032,-500.0,0.00011232,2]
[352597706,1739188241041,-758.44,0.00011232,2]
[352597707,1739188241051,-272.38748574,0.00011232,2]
[352597708,1739188241060,-500.0,0.00011232,2]
[352597709,1739188241069,-500.0,0.00011232,2]
[352597710,1739188241078,-500.0,0.00011232,2]
[352597711,1739188241087,-500.0,0.00011232,2]
[352597712,1739188241097,-500.0,0.00011232,2]
[352597713,1739188241107,-500.0,0.00011232,2]
[352597714,1739188241116,-619.52,0.00011232,2]
[352597715,1739188241125,-500.0,0.00011232,2]
[352597716,1739188241138,-500.0,0.00011232,2]
[352597717,1739188241148,-500.0,0.00011232,2]
[352597718,1739188241157,-500.0,0.00011232,2]
[352597719,1739188241167,-596.13797037,0.00011232,2]
[352597720,1739188241177,-1491.61,0.00011232,2]
[352597721,1739188241186,-500.0,0.00011232,2]
[352597722,1739188241195,-552.74,0.00011232,2]
[352597723,1739188241205,-2010.96,0.00011232,2]
[352597724,1739188241215,-500.0,0.00011232,2]
[352597725,1739188241225,-500.0,0.00011232,2]
[352597726,1739188241234,-6863.67,0.00011232,2]
[352597727,1739188241244,-708.26,0.00011232,2]
[352597728,1739188241253,-1938.56,0.00011232,2]
[352597729,1739188241262,-500.0,0.00011232,2]
[352597730,1739188241355,-3219.3,0.00011232,2]
[352597731,1739188241375,-500.0,0.00011232,2]
[352597732,1739188241384,-500.0,0.00011232,2]
[352597733,1739188241393,-500.0,0.00011232,2]
[352597734,1739188241402,-500.0,0.00011232,2]
[352597735,1739188241411,-500.0,0.00011232,2]
[352597736,1739188241420,-500.0,0.00011232,2]
[352597737,1739188241430,-1637.11,0.00011232,2]
[352597738,1739188241439,-1567.46,0.00011232,2]
[352597739,1739188241448,-608.3,0.00011232,2]
[352597740,1739188241458,-500.0,0.00011232,2]
[352597741,1739188241467,-500.0,0.00011232,2]
[352597742,1739188241476,-366.51649197,0.00011232,2]
[352597743,1739188241485,-886.59,0.00011232,2]
[352597744,1739188241495,-585.25,0.00011232,2]
[352597745,1739188241504,-20200.07,0.00011232,2]
[352597746,1739188241513,-500.0,0.00011232,2]
[352597747,1739188241524,-631.96,0.00011232,2]
[352597748,1739188241533,-500.0,0.00011232,2]
[352597749,1739188241542,-938.32,0.00011232,2]
[352597750,1739188241551,-8097.26,0.00011232,2]
[352597751,1739188241560,-500.0,0.00011232,2]
[352597752,1739188241570,-170.7404736,0.00011232,2]
[352597753,1739188241579,-500.0,0.00011232,2]
[352597754,1739188241588,-500.0,0.00011232,2]
[352597755,1739188241598,-500.0,0.00011232,2]
[352597756,1739188241607,-521.69,0.00011232,2]
[352597757,1739188241617,-528.6,0.00011232,2]
[352597758,1739188241626,-870.19,0.00011232,2]
[352597759,1739188241636,-1281.1,0.00011232,2]
[352597760,1739188241645,-500.0,0.00011232,2]
[352597761,1739188241654,-924.79,0.00011232,2]
[352597762,1739188241663,-500.0,0.00011232,2]
[352597763,1739188241673,-500.0,0.00011232,2]
[352597764,1739188241682,-791.09,0.00011232,2]
[352597765,1739188241691,-500.0,0.00011232,2]
[352597766,1739188241700,-500.0,0.00011232,2]
[352597767,1739188241709,-500.0,0.00011232,2]
[352597768,1739188241718,-880.78,0.00011232,2]
[352597769,1739188241727,-1762.12,0.00011232,2]
[352597770,1739188241736,-500.0,0.00011232,2]
[352597771,1739188241745,-508.68729116,0.00011232,2]
[352597772,1739188241755,-3760.35,0.00011232,2]
[352597773,1739188241764,-1504.86,0.00011232,2]
[352597774,1739188241774,-899.06,0.00011232,2]
[352597775,1739188241783,-816.13,0.00011232,2]
[352597776,1739188241792,-500.0,0.00011232,2]
[352597777,1739188241801,-500.0,0.00011232,2]
[352597778,1739188241811,-1626.04,0.00011232,2]
[352597779,1739188241820,-1151.91,0.00011232,2]
[352597780,1739188241830,-889.26,0.00011232,2]
[352597781,1739188241839,-500.0,0.00011232,2]
[352597782,1739188241849,-661.01,0.00011232,2]
[352597783,1739188241858,-500.0,0.00011232,2]
[352597784,1739188241868,-334.71576636,0.00011232,2]
[352597785,1739188241878,-500.0,0.00011232,2]
[352597786,1739188241887,-500.0,0.00011232,2]
[352597787,1739188241897,-500.0,0.00011232,2]
[352597788,1739188241906,-500.0,0.00011232,2]
[352597789,1739188241916,-500.0,0.00011232,2]
[352597790,1739188241925,-500.0,0.00011232,2]
[352597791,1739188241936,-500.0,0.00011232,2]
[352597792,1739188241945,-315.36689601,0.00011235,2]
[352597793,1739188241954,-369.92678193,0.00011331,2]
[352597794,1739188241963,-520.60028929,0.00011369,2]
[352597795,1739188241972,-622.5433876,0.00011369,2]
[352597796,1739188241981,-500.0,0.00011369,2]
[352597797,1739188241991,-500.0,0.00011369,2]
[352597798,1739188242000,-500.0,0.00011369,2]
[352597799,1739188242009,-500.0,0.00011369,2]
[352597800,1739188242019,-500.0,0.00011369,2]
[352597801,1739188242030,-500.0,0.00011369,2]
[352597802,1739188242039,-500.0,0.00011369,2]
[352597803,1739188242049,-500.0,0.00011369,2]
[352597804,1739188242058,-445.12929551,0.00011369,2]
[352597805,1739188242068,-766.47,0.00011369,2]
[352597806,1739188242077,-500.0,0.00011369,2]
[352597807,1739188242087,-500.0,0.00011369,2]
[352597808,1739188242096,-570.59,0.00011369,2]
[352597809,1739188242105,-500.0,0.00011369,2]
[352597810,1739188242114,-500.0,0.00011369,2]
[352597811,1739188242124,-500.0,0.00011369,2]
[352597812,1739188242133,-500.0,0.00011369,2]
[352597813,1739188242145,-500.0,0.00011369,2]
[352597814,1739188242154,-500.0,0.00011369,2]
[352597815,1739188242164,-599.48,0.00011369,2]
[352597816,1739188242173,-500.0,0.00011369,2]
[352597817,1739188242182,-500.0,0.00011369,2]
[352597818,1739188242192,-500.0,0.00011369,2]
[352597819,1739188242203,-500.0,0.00011369,2]
[352597820,1739188242215,-500.0,0.00011369,2]
[352597821,1739188242224,-500.0,0.00011369,2]
[352597822,1739188242234,-500.0,0.00011369,2]
[352597823,1739188242243,-500.0,0.00011369,2]
[352597824,1739188242252,-500.0,0.00011369,2]
[352597825,1739188242261,-576.64,0.00011369,2]
[352597826,1739188242270,-500.0,0.00011369,2]
[352597827,1739188242282,-603.82,0.00011369,2]
[352597828,1739188242291,-597.8535654,0.00011369,2]
[352597829,1739188242300,-500.0,0.00011369,2]
[352597830,1739188242309,-500.0,0.00011369,2]
[352597831,1739188242319,-500.0,0.00011369,2]
[352597832,1739188242329,-373.94114857,0.00011369,2]
[352597833,1739188242338,-500.0,0.00011369,2]
[352597834,1739188242347,-500.0,0.00011369,2]
[352597835,1739188242356,-758.44,0.00011369,2]
[352597836,1739188242366,-500.0,0.00011369,2]
[352597837,1739188242375,-423.12021039,0.00011369,2]
[352597838,1739188242384,-500.0,0.00011369,2]
[352597839,1739188242394,-500.0,0.00011369,2]
[352597840,1739188242403,-500.0,0.00011369,2]
[352597841,1739188242412,-619.52,0.00011369,2]
[352597842,1739188242421,-500.0,0.00011369,2]
[352597843,1739188242430,-500.0,0.00011369,2]
[352597844,1739188242440,-500.0,0.00011369,2]
[352597845,1739188242449,-500.0,0.00011369,2]
[352597846,1739188242459,-1491.61,0.00011369,2]
[352597847,1739188242467,-500.0,0.00011369,2]
[352597848,1739188242476,-552.74,0.00011369,2]
[352597849,1739188242487,-2010.96,0.00011369,2]
[352597850,1739188242496,-500.0,0.00011369,2]
[352597851,1739188242506,-500.0,0.00011369,2]
[352597852,1739188242515,-6863.67,0.00011369,2]
[352597853,1739188242525,-708.26,0.00011369,2]
[352597854,1739188242534,-1938.56,0.00011369,2]
[352597855,1739188242544,-500.0,0.00011369,2]
[352597856,1739188242554,-3219.3,0.00011369,2]
[352597857,1739188242562,-500.0,0.00011369,2]
[352597859,1739188242572,-500.0,0.00011369,2]
[352597860,1739188242581,-500.0,0.00011369,2]
[352597861,1739188242590,-500.0,0.00011369,2]
[352597862,1739188242599,-500.0,0.00011369,2]
[352597863,1739188242607,-1637.11,0.00011369,2]
[352597864,1739188242616,-1567.46,0.00011369,2]
[352597865,1739188242625,-608.3,0.00011369,2]
[352597866,1739188242635,-500.0,0.00011369,2]
[352597867,1739188242643,-182.41134264,0.00011369,2]
[352597868,1739188242652,-886.59,0.00011369,2]
[352597869,1739188242661,-585.25,0.00011369,2]
[352597870,1739188242670,-20200.07,0.00011369,2]
[352597871,1739188242679,-500.0,0.00011369,2]
[352597872,1739188242689,-631.96,0.00011369,2]
[352597873,1739188242698,-500.0,0.00011369,2]
[352597874,1739188242707,-938.32,0.00011369,2]
[352597875,1739188242716,-8097.26,0.00011369,2]
[352597877,1739188242725,-500.0,0.00011369,2]
[352597879,1739188242734,-500.0,0.00011369,2]
[352597881,1739188242743,-500.0,0.00011369,2]
[352597883,1739188242752,-500.0,0.00011369,2]
[352597885,1739188242762,-521.69,0.00011369,2]
[352597887,1739188242771,-528.6,0.00011369,2]
[352597889,1739188242781,-870.19,0.00011369,2]
[352597891,1739188242790,-1281.1,0.00011369,2]
[352597893,1739188242800,-500.0,0.00011369,2]
[352597895,1739188242809,-924.79,0.00011369,2]
[352597897,1739188242818,-500.0,0.00011369,2]
[352597899,1739188242827,-500.0,0.00011369,2]
[352597901,1739188242837,-791.09,0.00011369,2]
[352597903,1739188242846,-274.11374487,0.00011369,2]
[352597905,1739188242855,-500.0,0.00011369,2]
[352597907,1739188242864,-500.0,0.00011369,2]
[352597909,1739188242874,-880.78,0.00011369,2]
[352597911,1739188242883,-1762.12,0.00011369,2]
[352597913,1739188242892,-500.0,0.00011369,2]
[352597914,1739188242901,-3760.35,0.00011369,2]
[352597915,1739188242910,-1504.86,0.00011369,2]
[352597916,1739188242919,-899.06,0.00011369,2]
[352597917,1739188242929,-816.13,0.00011369,2]
[352597918,1739188242938,-500.0,0.00011369,2]
[352597919,1739188242948,-1626.04,0.00011369,2]
[352597920,1739188242957,-1151.91,0.00011369,2]
[352597921,1739188242966,-889.26,0.00011369,2]
[352597922,1739188242975,-500.0,0.00011369,2]
[352597923,1739188242985,-661.01,0.00011369,2]
[352597924,1739188242993,-500.0,0.00011369,2]
[352597925,1739188243002,-500.0,0.00011369,2]
[352597926,1739188243012,-500.0,0.00011369,2]
[352597927,1739188243021,-500.0,0.00011369,2]
[352597928,1739188243033,-500.0,0.00011369,2]
[352597929,1739188243042,-500.0,0.00011369,2]
[352597930,1739188243051,-500.0,0.00011369,2]
[352597931,1739188243061,-250.80127485,0.00011473,2]
[352597932,1739188243069,-500.0,0.00011473,2]
[352597934,1739188243079,-500.0,0.00011473,2]
[352597936,1739188243089,-497.60941393,0.00011473,2]
[352597938,1739188243099,-272.87832129,0.00011473,2]
[352597940,1739188243108,-156.47861849,0.00011473,2]
[352597942,1739188243118,-150.56066039,0.00011473,2]
[352597944,1739188243127,-533.81571692,0.00011473,2]
[352597946,1739188243142,-500.0,0.00011473,2]
[352597948,1739188243152,-500.0,0.00011473,2]
[352597950,1739188243161,-500.0,0.00011473,2]
[352597952,1739188243171,-500.0,0.00011473,2]
[352597954,1739188243181,-500.0,0.00011473,2]
[352597956,1739188243190,-500.0,0.00011473,2]
[352597958,1739188243199,-500.0,0.00011473,2]
[352597960,1739188243210,-386.01861773,0.00011473,2]
[352597961,1739188243220,-500.86851527,0.00011473,2]
[352597962,1739188243229,-500.0,0.00011473,2]
[352597964,1739188243238,-500.0,0.00011473,2]
[352597966,1739188243248,-626.10567238,0.00011473,2]
[352597967,1739188243257,-500.0,0.00011473,2]
[352597968,1739188243267,-500.0,0.00011473,2]
[352597969,1739188243278,-500.0,0.00011473,2]
[352597970,1739188243287,-632.31587076,0.00011473,2]
[352597971,1739188243297,-500.0,0.00011473,2]
[352597972,1739188243306,-278.54427922,0.00011473,2]
[352597973,1739188243316,-315.36689601,0.00011475,2]
[352597974,1739188243325,-151.0,0.00011493,2]
[352597975,1739188243335,-305207.64,0.000115,2]
[352597976,1739188243344,-500.0,0.00011506,2]
[352597977,1739188243354,-500.0,0.00011506,2]
[352597978,1739188243363,-500.0,0.00011506,2]
[352597979,1739188243372,-500.0,0.00011506,2]
[352597980,1739188243383,-500.0,0.00011506,2]
[352597981,1739188243392,-477.62032581,0.00011506,2]
[352597982,1739188243401,-766.47,0.00011506,2]
[352597983,1739188243410,-500.0,0.00011506,2]
[352597984,1739188243420,-500.0,0.00011506,2]
[352597985,1739188243429,-570.59,0.00011506,2]
[352597986,1739188243439,-296.4,0.00011506,2]
[352597987,1739188243449,-500.0,0.00011506,2]
[352597988,1739188243458,-500.0,0.00011506,2]
[352597989,1739188243467,-500.0,0.00011506,2]
[352597990,1739188243477,-500.0,0.00011506,2]
[352597991,1739188243487,-599.48,0.00011506,2]
[352597992,1739188243496,-500.0,0.00011506,2]
[352597993,1739188243506,-500.0,0.00011506,2]
[352597994,1739188243605,-500.0,0.00011506,2]
[352597995,1739188243626,-500.0,0.00011506,2]
[352597996,1739188243636,-500.0,0.00011506,2]
[352597997,1739188243646,-500.0,0.00011506,2]
[352597998,1739188243655,-500.0,0.00011506,2]
[352597999,1739188243664,-500.0,0.00011506,2]
[352598000,1739188243673,-500.0,0.00011506,2]
[352598001,1739188243683,-576.64,0.00011506,2]
[352598002,1739188243693,-500.0,0.00011506,2]
[352598003,1739188243702,-603.82,0.00011506,2]
[352598004,1739188243712,-205.37117131,0.00011506,2]
[352598005,1739188243722,-500.0,0.00011506,2]
[352598006,1739188243731,-580.12,0.00011506,2]
[352598007,1739188243741,-500.0,0.00011506,2]
[352598008,1739188243750,-758.44,0.00011506,2]
[352598009,1739188243760,-500.0,0.00011506,2]
[352598010,1739188243769,-500.0,0.00011506,2]
[352598011,1739188243779,-500.0,0.00011506,2]
[352598012,1739188243788,-619.52,0.00011506,2]
[352598013,1739188243797,-500.0,0.00011506,2]
[352598014,1739188243807,-500.0,0.00011506,2]
[352598015,1739188243816,-500.0,0.00011506,2]
[352598016,1739188243826,-500.0,0.00011506,2]
[352598017,1739188243835,-1491.61,0.00011506,2]
[352598018,1739188243845,-552.74,0.00011506,2]
[352598019,1739188243854,-2010.96,0.00011506,2]
[352598020,1739188243864,-500.0,0.00011506,2]
[352598021,1739188243873,-500.0,0.00011506,2]
[352598022,1739188243882,-6863.67,0.00011506,2]
[352598023,1739188243891,-708.26,0.00011506,2]
[352598024,1739188243901,-1938.56,0.00011506,2]
[352598025,1739188243910,-500.0,0.00011506,2]
[352598026,1739188243920,-3219.3,0.00011506,2]
[352598027,1739188243930,-500.0,0.00011506,2]
[352598028,1739188243939,-500.0,0.00011506,2]
[352598029,1739188243949,-500.0,0.00011506,2]
[352598030,1739188243958,-500.0,0.00011506,2]
[352598031,1739188243967,-1637.11,0.00011506,2]
[352598032,1739188243976,-1567.46,0.00011506,2]
[352598033,1739188243986,-608.3,0.00011506,2]
[352598034,1739188243996,-500.0,0.00011506,2]
[352598035,1739188244005,-886.59,0.00011506,2]
[352598036,1739188244015,-585.25,0.00011506,2]
[352598037,1739188244025,-20200.07,0.00011506,2]
[352598038,1739188244035,-631.96,0.00011506,2]
[352598039,1739188244044,-938.32,0.00011506,2]
[352598040,1739188244054,-8097.26,0.00011506,2]
[352598041,1739188244063,-500.0,0.00011506,2]
[352598042,1739188244073,-500.0,0.00011506,2]
[352598043,1739188244082,-500.0,0.00011506,2]
[352598044,1739188244092,-500.0,0.00011506,2]
[352598045,1739188244101,-521.69,0.00011506,2]
[352598046,1739188244121,-528.6,0.00011506,2]
[352598047,1739188244132,-870.19,0.00011506,2]
[352598048,1739188244147,-1281.1,0.00011506,2]
[352598049,1739188244157,-500.0,0.00011506,2]
[352598050,1739188244167,-924.79,0.00011506,2]
[352598051,1739188244177,-500.0,0.00011506,2]
[352598052,1739188244189,-791.09,0.00011506,2]
[352598053,1739188244199,-500.0,0.00011506,2]
[352598054,1739188244210,-500.0,0.00011506,2]
[352598055,1739188244221,-880.78,0.00011506,2]
[352598056,1739188244231,-1762.12,0.00011506,2]
[352598057,1739188244242,-3760.35,0.00011506,2]
[352598058,1739188244252,-1504.86,0.00011506,2]
[352598059,1739188244262,-899.06,0.00011506,2]
[352598060,1739188244272,-816.13,0.00011506,2]
[352598061,1739188244282,-1626.04,0.00011506,2]
[352598062,1739188244292,-1151.91,0.00011506,2]
[352598063,1739188244303,-889.26,0.00011506,2]
[352598064,1739188244312,-500.0,0.00011506,2]
[352598065,1739188244322,-661.01,0.00011506,2]
[352598066,1739188244332,-500.0,0.00011506,2]
[352598067,1739188244342,-500.0,0.00011506,2]
[352598068,1739188244352,-500.0,0.00011506,2]
[352598069,1739188244362,-500.0,0.00011506,2]
[352598070,1739188244372,-500.0,0.00011506,2]
[352598071,1739188244381,-500.0,0.00011613,2]
[352598072,1739188244391,-500.0,0.00011643,2]
[352598073,1739188244400,-500.0,0.00011643,2]
[352598074,1739188244410,-500.0,0.00011643,2]
[352598075,1739188244421,-766.47,0.00011643,2]
[352598076,1739188244431,-500.0,0.00011643,2]
[352598077,1739188244440,-500.0,0.00011643,2]
[352598078,1739188244451,-570.59,0.00011643,2]
[352598079,1739188244460,-500.0,0.00011643,2]
[352598080,1739188244470,-500.0,0.00011643,2]
[352598081,1739188244480,-500.0,0.00011643,2]
[352598082,1739188244489,-500.0,0.00011643,2]
[352598083,1739188244499,-599.48,0.00011643,2]
[352598084,1739188244510,-500.0,0.00011643,2]
[352598085,1739188244519,-500.0,0.00011643,2]
[352598086,1739188244530,-500.0,0.00011643,2]
[352598087,1739188244539,-500.0,0.00011643,2]
[352598088,1739188244549,-500.0,0.00011643,2]
[352598089,1739188244558,-500.0,0.00011643,2]
[352598090,1739188244568,-500.0,0.00011643,2]
[352598091,1739188244578,-500.0,0.00011643,2]
[352598092,1739188244587,-576.64,0.00011643,2]
[352598093,1739188244596,-500.0,0.00011643,2]
[352598094,1739188244606,-603.82,0.00011643,2]
[352598095,1739188244615,-500.0,0.00011643,2]
[352598096,1739188244625,-500.0,0.00011643,2]
[352598097,1739188244634,-758.44,0.00011643,2]
[352598098,1739188244643,-500.0,0.00011643,2]
[352598099,1739188244653,-500.0,0.00011643,2]
[352598100,1739188244663,-500.0,0.00011643,2]
[352598101,1739188244672,-619.52,0.00011643,2]
[352598102,1739188244682,-567.08,0.00011643,2]
[352598103,1739188244690,-500.0,0.00011643,2]
[352598104,1739188244700,-500.0,0.00011643,2]
[352598105,1739188244709,-1491.61,0.00011643,2]
[352598106,1739188244718,-552.74,0.00011643,2]
[352598107,1739188244728,-2010.96,0.00011643,2]
[352598108,1739188244738,-500.0,0.00011643,2]
[352598109,1739188244747,-580.76542839,0.00011643,2]
[352598110,1739188244756,-52.78033266,0.00011643,2]
[352598111,1739188244816,-6810.88966734,0.00011643,2]
[352598112,1739188244825,-708.26,0.00011643,2]
[352598113,1739188244835,-1938.56,0.00011643,2]
[352598114,1739188244844,-500.0,0.00011643,2]
[352598115,1739188244855,-3219.3,0.00011643,2]
[352598116,1739188244865,-500.0,0.00011643,2]
[352598117,1739188244874,-500.0,0.00011643,2]
[352598118,1739188244884,-1637.11,0.00011643,2]
[352598119,1739188244894,-1567.46,0.00011643,2]
[352598120,1739188244903,-608.3,0.00011643,2]
[352598121,1739188244914,-500.0,0.00011643,2]
[352598122,1739188244924,-886.59,0.00011643,2]
[352598123,1739188244934,-585.25,0.00011643,2]
[352598124,1739188244943,-20200.07,0.00011643,2]
[352598125,1739188244952,-631.96,0.00011643,2]
[352598126,1739188244962,-938.32,0.00011643,2]
[352598127,1739188244971,-8097.26,0.00011643,2]
[352598128,1739188244982,-500.0,0.00011643,2]
[352598129,1739188244992,-500.0,0.00011643,2]
[352598130,1739188245001,-500.0,0.00011643,2]
[352598131,1739188245011,-521.69,0.00011643,2]
[352598132,1739188245021,-528.6,0.00011643,2]
[352598133,1739188245032,-870.19,0.00011643,2]
[352598134,1739188245042,-1281.1,0.00011643,2]
[352598135,1739188245052,-500.0,0.00011643,2]
[352598136,1739188245062,-924.79,0.00011643,2]
[352598137,1739188245071,-500.0,0.00011643,2]
[352598138,1739188245082,-791.09,0.00011643,2]
[352598139,1739188245091,-500.0,0.00011643,2]
[352598140,1739188245101,-500.0,0.00011643,2]
[352598141,1739188245111,-880.78,0.00011643,2]
[352598142,1739188245121,-1762.12,0.00011643,2]
[352598143,1739188245131,-3760.35,0.00011643,2]
[352598144,1739188245143,-1504.86,0.00011643,2]
[352598145,1739188245153,-899.06,0.00011643,2]
[352598146,1739188245163,-816.13,0.00011643,2]
[352598147,1739188245173,-1626.04,0.00011643,2]
[352598148,1739188245183,-1151.91,0.00011643,2]
[352598149,1739188245193,-889.26,0.00011643,2]
[352598150,1739188245203,-500.0,0.00011643,2]
[352598151,1739188245213,-661.01,0.00011643,2]
[352598152,1739188245223,-500.0,0.00011643,2]
[352598153,1739188245233,-500.0,0.00011643,2]
[352598154,1739188245242,-500.0,0.00011643,2]
[352598155,1739188245252,-500.0,0.00011643,2]
[352598156,1739188245261,-327.31765265,0.00011643,2]
[352598157,1739188245271,-315.36689601,0.00011714,2]
[352598158,1739188245283,-1000.0,0.00011747,2]
[352598159,1739188245292,-12813.92543969,0.0001178,5]
[352598160,1739188245302,-500.0,0.0001178,2]
[352598161,1739188245311,-500.0,0.0001178,2]
[352598162,1739188245321,-500.0,0.0001178,2]
[352598163,1739188245330,-766.47,0.0001178,2]
[352598164,1739188245340,-505.75463293,0.0001178,2]